fUST/lending_fUST_20250207
["ID","MTS","AMOUNT","RATE_DAILY","PERIOD"]
[352040436,1738895441071,-500.0,0.00013699,2]
[352040438,1738895441080,-500.0,0.00013699,2]
[352040440,1738895441091,-500.0,0.00013699,2]
[352040442,1738895441101,-500.0,0.00013699,2]
[352040444,1738895441111,-512.35873651,0.00013699,2]
[352040446,1738895441120,-500.0,0.00013699,2]
[352040448,1738895441130,-500.0,0.00013699,2]
[352040450,1738895441141,-500.0,0.00013699,2]
[352040452,1738895441151,-500.0,0.00013699,2]
[352040454,1738895441162,-500.0,0.00013699,2]
[352040456,1738895441172,-500.0,0.00013699,2]
[352040458,1738895441181,-500.0,0.00013699,2]
[352040460,1738895441190,-500.0,0.00013699,2]
[352040462,1738895441200,-500.0,0.00013699,2]
[352040464,1738895441212,-330.54875136,0.00013699,2]
[352040466,1738895441221,-500.0,0.00013699,2]
[352040468,1738895441230,-500.0,0.00013699,2]
[352040470,1738895441239,-500.0,0.00013699,2]
[352040472,1738895441248,-500.0,0.00013699,2]
[352040474,1738895441257,-500.0,0.00013699,2]
[352040476,1738895441267,-500.0,0.00013699,2]
[352040478,1738895441276,-500.0,0.00013736,2]
[352040480,1738895441285,-503.60963945,0.0001374,2]
[352040483,1738895441295,-563.92975029,0.00013747,2]
[352040485,1738895441304,-506.16342408,0.0001377,2]
[352040487,1738895441313,-500.0,0.0001377,2]
[352040489,1738895441323,-500.0,0.0001377,2]
[352040491,1738895441332,-501.06668782,0.00013776,2]
[352040493,1738895441341,-184.74230259,0.00013776,2]
[352040495,1738895441350,-503.47738624,0.00013834,2]
[352040497,1738895441360,-503.53720985,0.00013834,2]
[352040498,1738895441369,-504.47790653,0.00013834,2]
[352040501,1738895441379,-504.68181915,0.00013834,2]
[352040502,1738895441388,-503.36707993,0.00013834,2]
[352040505,1738895441398,-500.0,0.00013834,2]
[352040507,1738895441407,-503.75153112,0.00013834,2]
[352040509,1738895441419,-503.37962008,0.00013834,2]
[352040511,1738895441428,-504.57696968,0.00013834,2]
[352040513,1738895441438,-504.58523692,0.00013834,2]
[352040515,1738895441447,-503.5298211,0.00013834,2]
[352040517,1738895441457,-503.97084255,0.00013834,2]
[352040519,1738895441466,-503.29645216,0.00013834,2]
[352040521,1738895441477,-504.51697037,0.00013834,2]
[352040523,1738895441487,-500.97557477,0.00013834,2]
[352040525,1738895441497,-500.0,0.00013834,2]
[352040527,1738895441506,-500.0,0.00013834,2]
[352040529,1738895441516,-500.0,0.00013834,2]
[352040531,1738895441525,-500.0,0.00013834,2]
[352040533,1738895441535,-500.0,0.00013834,2]
[352040535,1738895441544,-500.0,0.00013834,2]
[352040537,1738895441554,-500.9237029,0.00013834,2]
[352040539,1738895441565,-504.62918245,0.00013834,2]
[352040541,1738895441575,-500.0,0.00013834,2]
[352040542,1738895441584,-508.3098349,0.00013834,2]
[352040544,1738895441594,-500.0,0.00013834,2]
[352040546,1738895441604,-500.0,0.00013834,2]
[352040548,1738895441614,-610.7731166,0.00013834,2]
[352040550,1738895441624,-500.0,0.00013834,2]
[352040552,1738895441634,-504.02921014,0.00013834,2]
[352040554,1738895441645,-504.34589249,0.00013834,2]
[352040556,1738895441655,-509.85916292,0.00013834,2]
[352040558,1738895441671,-500.0,0.00013834,2]
[352040560,1738895441683,-500.0,0.00013834,2]
[352040562,1738895441694,-503.17402534,0.00013834,2]
[352040564,1738895441705,-501.82591696,0.00013834,2]
[352040566,1738895441715,-502.60644992,0.00013834,2]
[352040568,1738895441726,-509.49349648,0.00013834,2]
[352040570,1738895441738,-500.0,0.00013834,2]
[352040572,1738895441748,-506.87922895,0.00013834,2]
[352040574,1738895441758,-500.0,0.00013834,2]
[352040576,1738895441768,-500.0,0.00013834,2]
[352040578,1738895441779,-504.20903814,0.00013834,2]
[352040580,1738895441789,-229.51558749,0.00013834,2]
[352040582,1738895441799,-500.0,0.00013834,2]
[352040584,1738895441808,-500.0,0.00013834,2]
[352040586,1738895441818,-503.08594097,0.00013834,2]
[352040588,1738895441827,-503.20246224,0.00013834,2]
[352040590,1738895441837,-503.70906678,0.00013834,2]
[352040592,1738895441847,-509.45731863,0.00013834,2]
[352040594,1738895441856,-500.0,0.00013834,2]
[352040596,1738895441866,-271.12172605,0.00013834,2]
[352040598,1738895441876,-500.0,0.00013834,2]
[352040600,1738895441886,-500.0,0.00013834,2]
[352040602,1738895441896,-500.0,0.00013834,2]
[352040604,1738895441905,-1003.20100126,0.00013834,2]
[352040606,1738895441920,-500.0,0.00013834,2]
[352040608,1738895441929,-497.11613746,0.00013834,2]
[352040610,1738895441939,-500.0,0.00013834,2]
[352040612,1738895441948,-500.0,0.00013834,2]
[352040614,1738895441958,-500.0,0.00013834,2]
[352040616,1738895441967,-501.10268527,0.00013834,2]
[352040618,1738895441976,-500.0,0.00013834,2]
[352040620,1738895441985,-500.0,0.00013834,2]
[352040622,1738895441994,-500.87562422,0.00013834,2]
[352040624,1738895442004,-501.95420132,0.00013834,2]
[352040625,1738895442013,-506.41560793,0.00013834,2]
[352040627,1738895442022,-500.0,0.00013834,2]
[352040629,1738895442032,-501.68337438,0.00013834,2]
[352040631,1738895442042,-500.0,0.00013834,2]
[352040633,1738895442051,-501.28366464,0.00013834,2]
[352040635,1738895442061,-501.65645557,0.00013834,2]
[352040637,1738895442070,-500.69648092,0.00013834,2]
[352040639,1738895442079,-501.47203327,0.00013834,2]
[352040641,1738895442089,-500.0,0.00013834,2]
[352040643,1738895442098,-501.52272076,0.00013834,2]
[352040645,1738895442107,-500.0,0.00013834,2]
[352040647,1738895442116,-500.80621761,0.00013834,2]
[352040649,1738895442125,-501.5621144,0.00013834,2]
[352040651,1738895442135,-500.0,0.00013834,2]
[352040653,1738895442144,-306.02994906,0.00013834,2]
[352040655,1738895442153,-501.98363984,0.00013834,2]
[352040657,1738895442166,-500.0,0.00013834,2]
[352040659,1738895442175,-500.0,0.00013834,2]
[352040661,1738895442185,-502.86286128,0.00013834,2]
[352040663,1738895442194,-512.1755892,0.00013835,2]
[352040665,1738895442203,-567.02678144,0.00013835,2]
[352040667,1738895442212,-500.0,0.00013835,2]
[352040669,1738895442223,-530.10802178,0.00013835,2]
[352040671,1738895442232,-506.55443968,0.00013835,2]
[352040673,1738895442241,-500.0,0.00013835,2]
[352040675,1738895442250,-500.0,0.00013835,2]
[352040677,1738895442259,-636.53750785,0.00013835,2]
[352040679,1738895442269,-500.0,0.00013835,2]
[352040681,1738895442279,-500.0,0.00013835,2]
[352040683,1738895442288,-840.63,0.00013835,2]
[352040685,1738895442298,-500.0,0.00013835,2]
[352040687,1738895442307,-225.35743499,0.00013835,2]
[352040689,1738895442317,-500.0,0.00013835,2]
[352040691,1738895442326,-500.0,0.00013835,2]
[352040693,1738895442336,-580.82,0.00013835,2]
[352040695,1738895442345,-500.0,0.00013835,2]
[352040697,1738895442355,-500.0,0.00013835,2]
[352040699,1738895442364,-399.15078858,0.00013835,2]
[352040701,1738895442374,-709.92,0.00013835,2]
[352040703,1738895442384,-502.49519047,0.00013835,2]
[352040705,1738895442393,-500.0,0.00013835,2]
[352040707,1738895442403,-1225.24,0.00013835,2]
[352040709,1738895442415,-926.57,0.00013835,2]
[352040711,1738895442424,-500.0,0.00013835,2]
[352040713,1738895442434,-503.64,0.00013835,2]
[352040714,1738895442443,-500.0,0.00013835,2]
[352040729,1738895442576,-4325.84,0.00013835,2]
[352040731,1738895442586,-500.0,0.00013835,2]
[352040733,1738895442596,-500.0,0.00013835,2]
[352040735,1738895442607,-514.28265627,0.00013835,2]
[352040737,1738895442616,-500.0,0.00013835,2]
[352040739,1738895442625,-504.14358661,0.00013835,2]
[352040741,1738895442635,-500.0,0.00013835,2]
[352040743,1738895442645,-3366.22,0.00013835,2]
[352040745,1738895442655,-500.0,0.00013835,2]
[352040747,1738895442667,-745.97,0.00013835,2]
[352040749,1738895442678,-500.0,0.00013835,2]
[352040751,1738895442687,-502.85590627,0.00013835,2]
[352040754,1738895442697,-501.99948763,0.00013835,2]
[352040756,1738895442707,-502.28088577,0.00013835,2]
[352040758,1738895442716,-506.87,0.00013835,2]
[352040761,1738895442725,-502.27859123,0.00013835,2]
[352040764,1738895442734,-500.0,0.00013971,2]
[352040767,1738895442743,-503.67093681,0.00013971,2]
[352040769,1738895442752,-233.29306773,0.00013971,2]
[352040771,1738895442761,-506.15126715,0.00013971,2]
[352040772,1738895442770,-500.0,0.00013971,2]
[352040774,1738895442780,-253.22,0.00013971,2]
[352040777,1738895442789,-500.0,0.00013971,2]
[352040779,1738895442799,-525.54985248,0.00013971,2]
[352040782,1738895442808,-500.0,0.00013971,2]
[352040784,1738895442818,-206.67116412,0.00013971,2]
[352040787,1738895442827,-500.0,0.00013971,2]
[352040789,1738895442837,-506.19296581,0.00013971,2]
[352040791,1738895442846,-500.0,0.00013971,2]
[352040794,1738895442855,-500.0,0.00013971,2]
[352040796,1738895442865,-500.0,0.00013971,2]
[352040799,1738895442874,-154.3787928,0.00013972,2]
[352040801,1738895442883,-840.63,0.00013972,2]
[352040804,1738895442893,-500.0,0.00013972,2]
[352040807,1738895442903,-500.0,0.00013972,2]
[352040808,1738895442915,-580.82,0.00013972,2]
[352040811,1738895442924,-500.0,0.00013972,2]
[352040813,1738895442933,-500.0,0.00013972,2]
[352040816,1738895442942,-709.92,0.00013972,2]
[352040819,1738895442951,-1225.24,0.00013972,2]
[352040821,1738895442960,-926.57,0.00013972,2]
[352040824,1738895442969,-500.0,0.00013972,2]
[352040826,1738895442979,-4325.84,0.00013972,2]
[352040829,1738895442988,-500.0,0.00013972,2]
[352040831,1738895442997,-500.0,0.00013972,2]
[352040834,1738895443006,-500.0,0.00013972,2]
[352040836,1738895443015,-3366.22,0.00013972,2]
[352040838,1738895443025,-500.0,0.00013972,2]
[352040840,1738895443034,-745.97,0.00013972,2]
[352040843,1738895443043,-500.0,0.00013972,2]
[352040846,1738895443052,-506.87,0.00013972,2]
[352040848,1738895443061,-400.0,0.00013973,2]
[352040851,1738895443070,-2000.0,0.00013973,2]
[352040853,1738895443080,-406.13864036,0.0001399,2]
[352040854,1738895443089,-226.91981788,0.00014009,2]
[352040856,1738895443099,-226.91981788,0.00014009,2]
[352040858,1738895443108,-226.91981788,0.00014009,2]
[352040859,1738895443117,-226.91981788,0.00014009,2]
[352040861,1738895443127,-226.91981788,0.00014009,2]
[352040863,1738895443136,-226.91981788,0.00014009,2]
[352040865,1738895443145,-226.91981788,0.00014009,2]
[352040866,1738895443154,-226.91981788,0.00014009,2]
[352040867,1738895443164,-226.91981788,0.00014009,2]
[352040868,1738895443173,-226.91981788,0.00014009,2]
[352040869,1738895443182,-226.91981788,0.00014009,2]
[352040870,1738895443191,-226.91981788,0.00014009,2]
[352040872,1738895443200,-226.91981788,0.00014009,2]
[352040874,1738895443209,-226.91981788,0.00014009,2]
[352040876,1738895443218,-226.91981788,0.00014009,2]
[352040878,1738895443228,-226.91981788,0.00014009,2]
[352040880,1738895443237,-226.91981788,0.00014009,2]
[352040882,1738895443246,-226.91981788,0.00014009,2]
[352040884,1738895443256,-226.91981788,0.00014009,2]
[352040886,1738895443266,-226.91,0.00014009,2]
[352040889,1738895443275,-13264.03974987,0.00014029,2]
[352040891,1738895443284,-152.0,0.00014052,2]
[352040893,1738895443294,-47864.87889402,0.000141,2]
[352040896,1738895443303,-151.0,0.000141,2]
[352040899,1738895443313,-151.0,0.000141,2]
[352040902,1738895443323,-151.0,0.000141,2]
[352040905,1738895443332,-151.0,0.000141,2]
[352040908,1738895443341,-151.0,0.000141,2]
[352040911,1738895443350,-151.0,0.000141,2]
[352040913,1738895443359,-151.0,0.000141,2]
[352040915,1738895443369,-500.0,0.00014108,2]
[352040918,1738895443378,-840.63,0.00014109,2]
[352040921,1738895443388,-500.0,0.00014109,2]
[352040924,1738895443398,-500.0,0.00014109,2]
[352040927,1738895443407,-580.82,0.00014109,2]
[352040929,1738895443420,-500.0,0.00014109,2]
[352040932,1738895443430,-460.78282676,0.00014109,2]
[352040935,1738895443439,-709.92,0.00014109,2]
[352040938,1738895443448,-1225.24,0.00014109,2]
[352040941,1738895443458,-926.57,0.00014109,2]
[352040944,1738895443467,-500.0,0.00014109,2]
[352040947,1738895443477,-4325.84,0.00014109,2]
[352040950,1738895443486,-500.0,0.00014109,2]
[352040953,1738895443495,-500.0,0.00014109,2]
[352040956,1738895443505,-500.0,0.00014109,2]
[352040959,1738895443514,-3366.22,0.00014109,2]
[352040962,1738895443523,-500.0,0.00014109,2]
[352040965,1738895443532,-745.97,0.00014109,2]
[352040967,1738895443541,-420.61520495,0.00014109,2]
[352040969,1738895443551,-506.87,0.00014109,2]
[352040970,1738895443562,-153.0,0.00014154,2]
[352040972,1738895443571,-153.0,0.00014154,2]
[352040974,1738895443580,-1000.0,0.00014242,2]
[352040976,1738895443590,-500.0,0.00014245,2]
[352040978,1738895443599,-840.63,0.00014246,2]
[352040980,1738895443608,-500.0,0.00014246,2]
[352040982,1738895443617,-500.0,0.00014246,2]
[352040984,1738895443626,-580.82,0.00014246,2]
[352040986,1738895443636,-500.0,0.00014246,2]
[352040988,1738895443646,-151.0,0.00014246,2]
[352040989,1738895443655,-151.0,0.00014246,2]
[352040991,1738895443666,-151.0,0.00014246,2]
[352040993,1738895443675,-151.0,0.00014246,2]
[352040995,1738895443685,-151.0,0.00014246,2]
[352040997,1738895443695,-709.92,0.00014246,2]
[352040999,1738895443704,-264.586561,0.00014246,2]
[352041001,1738895443714,-264.586561,0.00014246,2]
[352041003,1738895443723,-151.0,0.00014246,2]
[352041004,1738895443732,-1225.24,0.00014246,2]
[352041007,1738895443742,-151.0,0.00014246,2]
[352041010,1738895443752,-151.0,0.00014246,2]
[352041013,1738895443762,-151.0,0.00014246,2]
[352041016,1738895443771,-152.29089,0.00014246,2]
[352041018,1738895443780,-926.57,0.00014246,2]
[352041020,1738895443790,-500.0,0.00014246,2]
[352041022,1738895443799,-151.0,0.00014246,2]
[352041024,1738895443808,-151.0,0.00014246,2]
[352041026,1738895443818,-4325.84,0.00014246,2]
[352041027,1738895443826,-151.482033,0.00014246,2]
[352041029,1738895443836,-151.0,0.00014246,2]
[352041031,1738895443845,-500.0,0.00014246,2]
[352041033,1738895443854,-500.0,0.00014246,2]
[352041035,1738895443863,-642.89,0.00014246,2]
[352041037,1738895443872,-3366.22,0.00014246,2]
[352041039,1738895443881,-500.0,0.00014246,2]
[352041041,1738895443890,-745.97,0.00014246,2]
[352041043,1738895443899,-506.87,0.00014246,2]
[352041045,1738895443908,-2500.0,0.00014247,2]
[352041047,1738895443919,-420.0,0.00014255,2]
[352041049,1738895443928,-1000.0,0.00014284,2]
[352041051,1738895443938,-184.91628837,0.00014301,2]
[352041054,1738895443947,-1000.0,0.00014318,2]
[352041055,1738895443957,-508.06989953,0.00014318,2]
[352041057,1738895443966,-511.040584,0.00014355,2]
[352041058,1738895443975,-747.53380268,0.00014358,2]
[352041059,1738895443984,-500.0,0.00014382,2]
[352041060,1738895443993,-840.63,0.00014383,2]
[352041061,1738895444003,-500.0,0.00014383,2]
[352041062,1738895444012,-500.0,0.00014383,2]
[352041063,1738895444021,-580.82,0.00014383,2]
[352041064,1738895444031,-500.0,0.00014383,2]
[352041065,1738895444040,-709.92,0.00014383,2]
[352041066,1738895444049,-1225.24,0.00014383,2]
[352041067,1738895444058,-926.57,0.00014383,2]
[352041068,1738895444068,-500.0,0.00014383,2]
[352041069,1738895444078,-4325.84,0.00014383,2]
[352041070,1738895444087,-500.0,0.00014383,2]
[352041071,1738895444096,-500.0,0.00014383,2]
[352041072,1738895444105,-3366.22,0.00014383,2]
[352041073,1738895444115,-500.0,0.00014383,2]
[352041074,1738895444124,-745.97,0.00014383,2]
[352041075,1738895444140,-506.87,0.00014383,2]
[352041076,1738895444149,-200.0,0.000144,3]
[352041077,1738895444159,-200.0,0.000144,4]
[352041078,1738895444170,-200.0,0.000144,5]
[352041079,1738895444179,-200.0,0.000144,6]
[352041080,1738895444189,-200.0,0.000144,7]
[352041081,1738895444198,-200.0,0.000144,5]
[352041082,1738895444208,-200.0,0.000144,6]
[352041083,1738895444217,-200.0,0.000144,7]
[352041084,1738895444227,-200.0,0.000144,3]
[352041085,1738895444236,-200.0,0.000144,4]
[352041086,1738895444245,-6307.07017785,0.000144,2]
[352041087,1738895444255,-500.06468196,0.00014473,2]
[352041088,1738895444264,-500.0,0.00014473,2]
[352041089,1738895444274,-500.0,0.00014473,2]
[352041090,1738895444283,-500.0,0.00014473,2]
[352041091,1738895444292,-225.13,0.00014493,2]
[352041092,1738895444301,-184.91628837,0.00014493,2]
[352041093,1738895444311,-37734.46735851,0.000145,2]
[352041094,1738895444320,-324695.32454362,0.000145,2]
[352041095,1738895444329,-1393.19,0.000145,2]
[352041096,1738895444339,-10000.0,0.000145,2]
[352041097,1738895444348,-576.0,0.000145,5]
[352041098,1738895444358,-156.43450877,0.000145,2]
[352041099,1738895444367,-151.0,0.000145,2]
[352041100,1738895444376,-151.0,0.000145,2]
[352041101,1738895444386,-151.0,0.000145,2]
[352041102,1738895444396,-308.09967,0.000145,2]
[352041103,1738895444405,-308.09967,0.000145,2]
[352041104,1738895444415,-174.904199,0.000145,2]
[352041105,1738895444425,-174.904199,0.000145,2]
[352041106,1738895444434,-151.0,0.000145,2]
[352041107,1738895444443,-151.0,0.000145,2]
[352041108,1738895444452,-151.0,0.000145,2]
[352041109,1738895444462,-151.0,0.000145,2]
[352041110,1738895444471,-151.0,0.000145,2]
[352041111,1738895444480,-151.0,0.000145,2]
[352041112,1738895444489,-537.870803,0.000145,2]
[352041113,1738895444499,-537.870803,0.000145,2]
[352041114,1738895444508,-151.0,0.000145,2]
[352041115,1738895444519,-151.0,0.000145,2]
[352041116,1738895444528,-151.0,0.000145,2]
[352041117,1738895444537,-151.739616,0.000145,2]
[352041118,1738895444547,-151.0,0.000145,2]
[352041119,1738895444557,-151.0,0.000145,2]
[352041120,1738895444569,-151.0,0.000145,2]
[352041121,1738895444579,-151.0,0.000145,2]
[352041122,1738895444589,-151.0,0.000145,2]
[352041123,1738895444600,-151.0,0.000145,2]
[352041124,1738895444609,-151.0,0.000145,2]
[352041125,1738895444619,-264.586561,0.000145,2]
[352041126,1738895444629,-264.586561,0.000145,2]
[352041127,1738895444639,-151.0,0.000145,2]
[352041128,1738895444651,-151.0,0.000145,2]
[352041129,1738895444663,-151.0,0.000145,2]
[352041130,1738895444673,-151.0,0.000145,2]
[352041131,1738895444683,-293.942547,0.000145,2]
[352041132,1738895444692,-151.0,0.000145,2]
[352041133,1738895444701,-151.0,0.000145,2]
[352041134,1738895444711,-151.0,0.000145,2]
[352041135,1738895444720,-151.0,0.000145,2]
[352041136,1738895444729,-151.0,0.000145,2]
[352041137,1738895444739,-151.0,0.000145,2]
[352041138,1738895444749,-500.0,0.00014519,2]
[352041139,1738895444759,-1034.87,0.00014519,2]
[352041140,1738895444768,-840.63,0.0001452,2]
[352041141,1738895444778,-500.0,0.0001452,2]
[352041142,1738895444787,-500.0,0.0001452,2]
[352041143,1738895444797,-580.82,0.0001452,2]
[352041144,1738895444807,-500.0,0.0001452,2]
[352041145,1738895444817,-709.92,0.0001452,2]
[352041146,1738895444827,-1225.24,0.0001452,2]
[352041147,1738895444836,-926.57,0.0001452,2]
[352041148,1738895444846,-500.0,0.0001452,2]
[352041149,1738895444856,-4325.84,0.0001452,2]
[352041150,1738895444866,-500.0,0.0001452,2]
[352041151,1738895444875,-500.0,0.0001452,2]
[352041152,1738895444885,-3366.22,0.0001452,2]
[352041154,1738895444894,-500.0,0.0001452,2]
[352041156,1738895444904,-745.97,0.0001452,2]
[352041158,1738895444915,-506.87,0.0001452,2]
[352041160,1738895444925,-3000.0,0.00014521,2]
[352041162,1738895444934,-2461.2312302,0.00014522,2]
[352041164,1738895444944,-155.0,0.0001458,2]
[352041166,1738895444954,-1210.24690706,0.00014592,2]
[352041168,1738895444964,-155.0,0.00014601,2]
[352041170,1738895444974,-155.0,0.00014601,2]
[352041172,1738895444983,-261.808,0.00014626,2]
[352041174,1738895444993,-1975.0,0.00014626,2]
[352041176,1738895445002,-542.431,0.00014626,2]
[352041178,1738895445012,-2299.073,0.00014626,2]
[352041180,1738895445022,-1000.0,0.00014635,2]
[352041182,1738895445031,-150.0,0.00014642,2]
[352041184,1738895445041,-150.0,0.00014642,2]
[352041185,1738895445051,-150.108,0.00014642,2]
[352041188,1738895445060,-150.028,0.00014642,2]
[352041189,1738895445070,-500.0,0.00014656,2]
[352041192,1738895445080,-840.63,0.00014657,2]
[352041193,1738895445089,-500.0,0.00014657,2]
[352041195,1738895445100,-500.0,0.00014657,2]
[352041197,1738895445110,-580.82,0.00014657,2]
[352041199,1738895445120,-500.0,0.00014657,2]
[352041202,1738895445131,-709.92,0.00014657,2]
[352041203,1738895445141,-1225.24,0.00014657,2]
[352041205,1738895445151,-926.57,0.00014657,2]
[352041207,1738895445162,-500.0,0.00014657,2]
[352041209,1738895445171,-4325.84,0.00014657,2]
[352041211,1738895445188,-500.0,0.00014657,2]
[352041213,1738895445198,-500.0,0.00014657,2]
[352041215,1738895445208,-3366.22,0.00014657,2]
[352041217,1738895445218,-500.0,0.00014657,2]
[352041219,1738895445228,-745.97,0.00014657,2]
[352041221,1738895445237,-506.87,0.00014657,2]
[352041223,1738895445247,-184.91628837,0.00014658,2]
[352041224,1738895445256,-1003.71064995,0.00014675,2]
[352041225,1738895445266,-1210.24690706,0.00014692,2]
[352041226,1738895445275,-600.0,0.00014727,2]
[352041228,1738895445285,-155.328664,0.00014749,3]
[352041230,1738895445294,-155.0,0.00014772,2]
[352041232,1738895445304,-155.0,0.00014772,2]
[352041234,1738895445313,-155.0,0.00014772,2]
[352041236,1738895445323,-155.0,0.00014772,2]
[352041238,1738895445332,-155.0,0.00014772,2]
[352041240,1738895445341,-155.0,0.00014772,2]
[352041242,1738895445354,-155.0,0.00014772,2]
[352041244,1738895445367,-155.0,0.00014772,2]
[352041246,1738895445376,-155.0,0.00014772,2]
[352041248,1738895445385,-155.0,0.00014772,2]
[352041250,1738895445395,-155.0,0.00014772,2]
[352041252,1738895445405,-269.54,0.00014772,2]
[352041254,1738895445415,-6307.07017783,0.00014789,2]
[352041256,1738895445424,-1210.24690706,0.00014792,2]
[352041258,1738895445434,-500.0,0.00014793,2]
[352041260,1738895445443,-214.303582,0.00014794,2]
[352041262,1738895445453,-840.63,0.00014794,2]
[352041264,1738895445463,-151.0,0.00014794,2]
[352041266,1738895445472,-151.0,0.00014794,2]
[352041268,1738895445481,-500.0,0.00014794,2]
[352041270,1738895445490,-537.870803,0.00014794,2]
[352041272,1738895445499,-537.870803,0.00014794,2]
[352041273,1738895445509,-151.0,0.00014794,2]
[352041276,1738895445519,-500.0,0.00014794,2]
[352041277,1738895445528,-580.82,0.00014794,2]
[352041279,1738895445538,-500.0,0.00014794,2]
[352041282,1738895445548,-151.0,0.00014794,2]
[352041283,1738895445557,-151.0,0.00014794,2]
[352041285,1738895445570,-151.0,0.00014794,2]
[352041287,1738895445580,-709.92,0.00014794,2]
[352041289,1738895445590,-264.586561,0.00014794,2]
[352041291,1738895445599,-264.586561,0.00014794,2]
[352041293,1738895445611,-151.0,0.00014794,2]
[352041295,1738895445621,-1225.24,0.00014794,2]
[352041297,1738895445631,-151.0,0.00014794,2]
[352041299,1738895445641,-151.0,0.00014794,2]
[352041301,1738895445652,-926.57,0.00014794,2]
[352041303,1738895445663,-500.0,0.00014794,2]
[352041306,1738895445673,-151.0,0.00014794,2]
[352041308,1738895445683,-4325.84,0.00014794,2]
[352041309,1738895445693,-500.0,0.00014794,2]
[352041312,1738895445703,-500.0,0.00014794,2]
[352041313,1738895445712,-3366.22,0.00014794,2]
[352041315,1738895445722,-500.0,0.00014794,2]
[352041317,1738895445732,-745.97,0.00014794,2]
[352041320,1738895445743,-151.0,0.00014794,2]
[352041321,1738895445752,-151.0,0.00014794,2]
[352041324,1738895445763,-506.87,0.00014794,2]
[352041326,1738895445772,-151.0,0.00014794,2]
[352041327,1738895445782,-3500.0,0.00014795,2]
[352041330,1738895445792,-151.0,0.00014806,2]
[352041331,1738895445801,-151.0,0.00014806,2]
[352041334,1738895445811,-151.0,0.00014806,2]
[352041336,1738895445821,-151.0,0.00014806,2]
[352041337,1738895445830,-151.0,0.00014806,2]
[352041340,1738895445840,-151.0,0.00014806,2]
[352041341,1738895445849,-151.0,0.00014806,2]
[352041343,1738895445859,-151.0,0.00014806,2]
[352041345,1738895445868,-151.0,0.00014806,2]
[352041348,1738895445878,-151.0,0.00014806,2]
[352041350,1738895445887,-151.0,0.00014806,2]
[352041352,1738895445897,-151.0,0.00014806,2]
[352041353,1738895445907,-151.0,0.00014806,2]
[352041354,1738895445920,-156.43,0.00014806,2]
[352041355,1738895445930,-155.0,0.00014806,2]
[352041357,1738895445940,-155.0,0.00014806,2]
[352041359,1738895445950,-155.0,0.00014806,2]
[352041361,1738895445964,-155.0,0.00014806,2]
[352041362,1738895445975,-155.0,0.00014806,2]
[352041366,1738895445986,-155.0,0.00014806,2]
[352041368,1738895445996,-155.0,0.00014806,2]
[352041372,1738895446006,-155.0,0.00014806,2]
[352041375,1738895446018,-155.0,0.00014806,2]
[352041395,1738895446152,-155.0,0.00014806,2]
[352041396,1738895446162,-155.0,0.00014806,2]
[352041397,1738895446176,-155.0,0.00014806,2]